{"text_format":"1","workbook":"xlsx","n_sheets":11,"sheets":["1_Cartiglio ","2_INDICE","3_SCHEMA","4-INFORMAZIONI RISULTATI AZIONI","5-VdR_PdM","6-VdR_processo","7-OPPORTUNITA","8-VERIFICA PARTE TERZA_BOZZA ","Foglio1","modifiche","RIASSUNTO"],"not_rendered":{"charts":0,"images":2,"macros":1,"external_links":9,"defined_names":250,"comments":0,"pivot_tables":0},"unopened":[],"bounds":{"document_bytes":16777216,"sheet_cells":100000,"rows_first":2000,"rows_last":500,"rows_between":2000,"halvings":0,"cell_chars":16384,"cell_head_chars":4096},"cells_cut":0,"cells_raw":0,"read":"whole","date_system":"1900"}

{"sheet":"1_Cartiglio ","index":0,"n_rows":41,"n_cols":18,"rows_kept":41,"cut":false,"hidden":false,"merged":[[13,1,13,18],[42,1,42,6],[77,0,77,6],[18,1,18,18],[21,1,22,18],[24,1,25,18],[27,1,28,18],[33,1,33,18],[35,1,35,18],[36,1,36,18],[5,2,5,18],[0,0,4,1],[0,2,1,16],[0,17,4,18],[2,2,2,16],[3,2,4,16]]}
[null,null,"Valutazione del rischio (VdR)",null,null,null,null,null,null,null,null,null,null,null,null,null,null,{"$f":"A8&\"                                    Pagina \"&B9&\"  di \"&B10&\"                                         \"&A11&B11&\"                                    \"&A12&B12","v":"Appr. LNRBM-ITA                                    Pagina 1  di 8                                         Revisione n.1                                    Data:15/05/2023"}]
[]
[null,null,"LINEE GUIDA NAZIONALI"]
[null,null,"Molluschi Bivalvi Vivi"]
[]
[]
[]
["Appr. LNRBM-ITA"]
["Pagina Corrente",1]
["Pagine totali",8]
["Revisione n.",1]
["Data:","15/05/2023"]
[]
["Motivazione revisione: "]
["OGGETTO","la presente valutazione di rischio si applica in conformità al Reg UE 2019/627 TITOLO V, CAPO I articolo 61"]
[]
["DETTAGLI","in particolare vengono presi in considerazione le attività atte a garantire il rispetto dei requisiti di cui ai commi 3, 4, 5, 6,7"]
[]
["OBIETTIVO "]
["Definizione di RISCHIO"]
[]
["RISCHIO BASSO","IL pdM rispecchia  i requisiti cogenti e garantisce la TUTELA DEL CONSUMATORE FINALE  "]
[]
[]
["RISCHIO MEDIO","IL pdM rispecchia  i requisiti cogenti ma alcuni aspetti non consentono di garantire un controllo efficace dei MBV- i campionamenti  dunque NON ASSICURANO L'INTERCETTAZIONE DEL FENOMENO DI TOSSICITA' al suo manifestarsi  "]
[]
[]
["RISCHIO ELEVATO","IL pdM NON rispecchia  i requisiti cogenti e NON GARANTISCE la TUTELA DEL CONSUMATORE FINALE "]
[]
[]
["VALUTAZIONE DEL RISCHIO"]
[]
["valutazione del rischio associato alla stesura del PdM","il rischio viene calcolato sulla base di criteri oggettivi e valuta i requisiti e le caratteristiche delle aree indagate, e la natura dei MBV"]
["valutazione del rischio associato alla APPLICAZIONE del PdM-VdR PROCESSO","il rischio viene calcolato sulla base di informazioni rigardo le modalità di definizione dei punti di campionamento, la tipologia delle aree investigate, le modalità di campionamento adottate, il rischio legato al personale incaricato del campionamento, il rischio legato alla qualità del dato finale."]
[]
["OPPORTUNITA","sulla base dell' art. 61, comma 4 lettera a) del Reg UE 2019/627, è possibile adottare frequenze di campionamento diverse rispetto a quelle indicate; questo è possibile presentando una VdR che dimostra un rischio basso di episodi tossici"]
[null,"alla voce \"OPPORTUNITA\" vengono valutate le modalità di riduzione del rischio associato a un PdM che adotta frequenze di campionamento ridotte rispetto a quelle indicate nel Reg UE 2019/627  mediante :"]
[null,1,"utilizzo di dati storici relativi all'area in questione per la pianificazione del PdM e delle frequenze di campionamento"]
[null,2,"utilizzo di un sistema di Early Warning per la intercettazione dell'evento tossico"]
[]
["compilato da","Sonia Dall'Ara"]

{"sheet":"2_INDICE","index":1,"n_rows":20,"n_cols":9,"rows_kept":20,"cut":false,"hidden":false,"merged":[[11,2,11,4],[12,2,12,4],[13,2,13,4],[28,1,28,2],[28,4,28,5],[8,2,8,4],[9,2,9,4],[10,2,10,4],[7,2,7,4],[0,1,4,1],[0,2,0,4],[1,2,2,4],[3,2,4,4],[5,1,5,6],[0,5,4,7]]}
[null,null,{"$f":"'1_Cartiglio '!C1:Q2","v":"Valutazione del rischio (VdR)"},null,null,{"$f":"'1_Cartiglio '!$A$8&\"                                    Pagina \"&I2&\"  di \"&'1_Cartiglio '!$B$10&\"                                        \"&'1_Cartiglio '!$A$11&'1_Cartiglio '!$B$11&\"                                  \" &'1_Cartiglio '!$A$12&'1_Cartiglio '!$B$12&\"\"","v":"Appr. LNRBM-ITA                                    Pagina 2  di 8                                        Revisione n.1                                  Data:15/05/2023"}]
[null,null,{"$f":"'1_Cartiglio '!C3:Q3","v":"LINEE GUIDA NAZIONALI"},null,null,null,null,null,2]
[]
[null,null,{"$f":"'1_Cartiglio '!C4:Q5","v":"Molluschi Bivalvi Vivi"}]
[]
[null,"INDICE"]
[]
[null,"FOGLIO","DESCRIZIONE",null,null,"pagina"]
[null,"SCHEMA","indicazione del procedimento da seguire per l'applicazione della valitazione di RISCHIO",null,null,3]
[null,"INFORMAZIONI","parte da compilare a cura del soggetto che ha predisposto il Piano di Monitoraggio",null,null,4]
[null,"VdR-PdM","da compilare per la definizione del RISCHIO_ valutazione di rischio del Piano di Monitoraggio",null,null,5]
[null,"VdR_PROCESSO","da compilare per la definizione del RISCHIO_valutazione di rischio del Processo",null,null,6]
[null,"OPPORTUNITA'","da compilare_valutazione mitigazione del rischio con la predisposizione di opportuni meccanismi di controllo-prevenzione e mitigazione del rischio",null,null,7]
[null,"VERIFICA DA PARTE TERZA","da compilare a cura di ente terzo_per la CONVALIDA della valutazione di rischio",null,null,8]
[]
[null,"LEGENDA: "]
[null,"MBV= MOLLUSCHI BIVALVI VIVI"]
[null,"BM= BIOTOSSINE MARINE"]
[null,"VdR= VALUTAZIONE DEL RISCHIO"]
[null,"PdM= PIANO DI MONITORAGGIO/MONITORAGGIO"]

{"sheet":"3_SCHEMA","index":2,"n_rows":101,"n_cols":9,"rows_kept":101,"cut":false,"hidden":false,"merged":[[5,1,5,7],[0,1,4,1],[0,2,0,4],[1,2,2,4],[3,2,4,4],[0,5,4,6]]}
[null,null,{"$f":"'1_Cartiglio '!C1:Q2","v":"Valutazione del rischio (VdR)"},null,null,{"$f":"'1_Cartiglio '!$A$8&\"                                    Pagina \"&I2&\"  di \"&'1_Cartiglio '!$B$10&\"                                        \"&'1_Cartiglio '!$A$11&'1_Cartiglio '!$B$11&\"                                  \" &'1_Cartiglio '!$A$12&'1_Cartiglio '!$B$12&\"\"","v":"Appr. LNRBM-ITA                                    Pagina 3  di 8                                        Revisione n.1                                  Data:15/05/2023"}]
[null,null,{"$f":"'1_Cartiglio '!C3:Q3","v":"LINEE GUIDA NAZIONALI"},null,null,null,null,null,3]
[]
[null,null,{"$f":"'1_Cartiglio '!C4:Q5","v":"Molluschi Bivalvi Vivi"}]
[]
[null,"SCHEMA"]
[]
[]
[]
[]
[]
[]
[]
[]
[]
[]
[]
[]
[]
[]
[]
[]
[]
[]
[]
[]
[]
["TIPOLOGIA DI RISCHIO"]
[]
[]
[]
[]
[]
[]
["RISULTATO"]
[]
[]
[]
[]
[]
[]
["AZIONI _1"]
[]
[]
[]
[]
[]
[]
[]
[]
[]
[]
[]
[]
[]
[]
[]
[]
[]
[]
["TEMPISTICHE",null,"ENTRO 6 MESI DALLA ATTUAZIONE DEL PdM o in tempi più brevi","IMMEDIATE: rivedere il PdM all'evidenziarsi del RISCHIO"]
[]
[]
[]
[]
[]
["AZIONI CORRETTIVE"]
[]
[]
[]
[]
[]
[]
[]
[]
[]
["VALUTAZIONE"]
[]
[]
[]
[]
[]
[]
[]
[]
[]
["AZIONI_2"]
[]
[]
[]
[]
[]
[]
[]
[]
["CONTROLLO"]
[]
[]
[]
[]
["TEMPISTICA"]

{"sheet":"4-INFORMAZIONI RISULTATI AZIONI","index":3,"n_rows":55,"n_cols":10,"rows_kept":55,"cut":false,"hidden":false,"merged":[[52,1,54,1],[36,7,36,9],[41,1,41,3],[37,7,37,8],[46,1,46,6],[49,1,51,1],[0,6,4,6],[17,2,17,6],[5,1,5,6],[16,2,16,6],[15,2,15,4],[8,2,8,6],[9,2,9,6],[0,2,0,5],[1,2,2,5],[3,2,4,5],[0,1,4,1],[6,2,6,6],[7,2,7,6],[10,2,10,6],[11,2,11,6],[12,2,12,6],[19,1,19,6],[36,4,36,6],[36,1,36,3],[35,1,35,3],[13,2,13,6],[14,2,14,6],[24,1,24,5]]}
[null,null,{"$f":"'1_Cartiglio '!C1:Q2","v":"Valutazione del rischio (VdR)"},null,null,null,{"$f":"'1_Cartiglio '!$A$8&\"                                    Pagina \"&J2&\"  di \"&'1_Cartiglio '!$B$10&\"                                        \"&'1_Cartiglio '!$A$11&'1_Cartiglio '!$B$11&\"                                  \" &'1_Cartiglio '!$A$12&'1_Cartiglio '!$B$12&\"\"","v":"Appr. LNRBM-ITA                                    Pagina 4  di 8                                        Revisione n.1                                  Data:15/05/2023"}]
[null,null,{"$f":"'1_Cartiglio '!C3:Q3","v":"LINEE GUIDA NAZIONALI"},null,null,null,null,null,null,4]
[]
[null,null,{"$f":"'1_Cartiglio '!C4:Q5","v":"Molluschi Bivalvi Vivi"}]
[]
[null,"INFORMAZIONI GENERALI (DA COMPILARE)"]
[null,"IDENTIFICAZIONE DELLA AREA "]
[null,"TIPOLOGIA DI IMPIANTO"]
[null,"STAGIONALITA"]
[null,"classificazione AREA","A"]
["A","per AREA OMOGENEA elencare le STAZIONI "]
[null,"TIPOLOGIA DI ALLEVAMENTO"]
[null,"data"]
[null,"compilato da"]
[null,"validato da"]
[null,"REVISIONE n",null,null,null,"del"]
[null,"CAUSA MODIFICA/REVISIONE (dettagliare le motivazioni della revisione)"]
[null,"requisiti minimi","ANALISI DI FITOPLANCTON TOSSICO E BIOTOSSINE REGOLAMENTATE AI SENSI DEL REG 853/2004 e Reg UE 2017/625 E ss.mm.ii. (ASP, PSP, LIPOFILICHE)"]
[]
[null,"RISULTATI VALUTAZIONE DI RISCHIO"]
[]
[]
[null,"PROCESSO: CAMPIONAMENTO E ANALISI",{"$f":"F29","v":"RISCHIO ELEVATO"}]
[]
[null,"RISCHIO PROCESSO "]
[null,"V1_VALUTAZIONE RISCHIO DA LOCALIZZAZIONE PUNTI DI CAMPIONAMENTO","V2-VALUTAZIONE RISCHIO DEL NUMERO RAPPRESENTATIVO DEI PUNTI DI CAMPIONAMENTO","V3-CAMPIONAMENTO FITOPLANCTON E MB","V4-ANALISI LAB","RISCHIO CAMPIONAMENTO COMPLESSIVO"]
["VALORI SOGLIA",50,100,5,25]
[null,{"$f":"'6-VdR_processo'!F31","v":"NON APPLICABILE"},{"$f":"'6-VdR_processo'!F39","v":"NON APPLICABILE"},{"$f":"'6-VdR_processo'!E56","v":0},{"$f":"'6-VdR_processo'!E63","v":""},null,null,{"$f":"SUM(B28:E28)","v":0}]
[null,{"$f":"IF(B28=\"NON APPLICABILE\",\"NON APPLICABILE\",IF(B28>B27,\"RISCHIO ELEVATO\", \"OK\"))","v":"NON APPLICABILE"},{"$f":"IF(C28=\"NON APPLICABILE\",\"NON APPLICABILE\",IF(C28>=C27,\"RISCHIO ELEVATO\",\"OK\"))","v":"NON APPLICABILE"},{"$f":"IF(D28=\"NON APPLICABILE\",\"NON APPLICABILE\",IF(D28>=D27,\"RISCHIO ELEVATO\",\"OK\"))","v":"OK"},{"$f":"IF(E28=\"NON APPLICABILE\",\"NON APPLICABILE\",IF(E28>=E27,\"RISCHIO ELEVATO\",\"OK\"))","v":"RISCHIO ELEVATO"},{"$f":"IF(E29=\"NON APPLICABILE\",\"NON APPLICABILE\",IF(OR(B29=\"RISCHIO ELEVATO\",C29=\"RISCHIO ELEVATO\",D29=\"RISCHIO ELEVATO\",E29=\"RISCHIO ELEVATO\"),\"RISCHIO ELEVATO\", \"RISCHIO BASSO\"))","v":"RISCHIO ELEVATO"}]
["PERCENTUALE",{"$f":"IFERROR(B28/$H$28*100,\"\")","v":""},{"$f":"IFERROR(C28/$H$28*100,\"\")","v":""},{"$f":"IFERROR(D28/$H$28*100,\"\")","v":""},{"$f":"IFERROR(E28/$H$28*100,\"\")","v":""}]
[]
[]
[null,"PROCESSO: DEFINIZIONE PIANO DI MONITORAGGIO"]
[]
[]
[]
[null,"DATI ELABORAZIONE VdR piano di campionamento",null,null,"OPPORTUNITA'",null,null,"valutazione nel tempo (F1-OPPORTUNITA)"]
[null,"RISCHIO VALUTATO DA PdM pianficazione e frequenza taratura (P1)","stima del rischio PdM ","COMPLESSIVA (compresi altri fattori) P1-P2-P3","O1","rivalutazione del RISCHIO","CLASSIFICAZIONE RISCHIO dopo attivzzione delle OPPORTUNITA'","VALUTAZIONE NEL TEMPO",null,"CLASSIFICAZIONE"]
[null,null,null,null,null,null,null,"IRP"]
[null,{"$f":"'5-VdR_PdM'!Q11","v":"NON CLASSIFICATO"},{"$f":"'5-VdR_PdM'!Q11","v":"NON CLASSIFICATO"},{"$f":"'5-VdR_PdM'!Q16","v":""},{"$f":"'7-OPPORTUNITA'!E26","v":""},{"$f":"IFERROR(ROUND(D40*E40,0),\"\")","v":""},{"$f":"IF(F40=\"\",\"\",IF(F40<200,\"BASSO\",IF(F40<450,\"MEDIO\",\"ELEVATO\")))","v":""},{"$f":"IF('7-OPPORTUNITA'!E37>=1,\"NON APPLICABILE\",'7-OPPORTUNITA'!E37)","v":"NON APPLICABILE"},{"$f":"IFERROR(ROUND(F40*H40,0),\"\")","v":""},{"$f":"IF(I40=\"\",\"\",IF(I40<200,\"BASSO\",IF(I40<450,\"MEDIO\",\"ELEVATO\")))","v":""}]
[null,"% P1",{"$f":"IFERROR(B40/D40*100,\"\")","v":""},{"$f":"'5-VdR_PdM'!D16","v":""},{"$f":"IF(E40=\"\",AND(H40=\"\",D40,F40,I40))","v":false}]
[null,"se il rischio risulta ELEVATO occorre procedere con la compilazione della parte Opportunità O"]
[]
[]
[]
[]
[null,"AZIONI "]
[]
[null,"TIPOLOGIA DI RISCHIO DA PdM","ATTIVITA'","SOGGETTA A REVISIONE PERIODICA","TEMPISTICHE","NOTA (TEMPO MAX)"]
[null,"RISCHIO BASSO","PROCEDERE con il riesame della VdR compilando il Modulo VdR_VdM","SI","alla riformulazione del PdM o se intervengono variazioni significative che possono comportare una variazione della VdR","3 ANNI"]
[null,null,"PROCEDERE con il riesame della VdR riesaminando il Modulo OPPORTUNITA'","SI (se applicato per la riduzione del RISCHIO)","riverificare la sezione OPPORTUNITA'  O1-O2  se intervengono fattori atti a modificare la valutazione","1 ANNO"]
[null,null,"esaminare la ROBUSTEZZA dell'approccio mediante la compilazione della SEZIONE  F-1","SI (se applicato mitigazione con OPPORTUNITA' per la riduzione del RISCHIO)","compilare la sezione F-1 ","1 ANNO"]
[null,"MEDIO","PROCEDERE con il riesame della VdR compilando il Modulo VdR_VdM","SI","alla riformulazione del PdM o se intervengono variazioni significative che possono comportare una variazione della VdR","1 ANNO"]
[null,null,"PROCEDERE con il riesame della VdR compilando il Modulo OPPORTUNITA'","SI","riverificare la sezione OPPORTUNITA'  O1-O2  cse intervengono fattori atti a modificare la valutazione","6 MESI"]
[null,null,"esaminare la ROBUSTEZZA dell'approccio mediante la compilazione della SEZIONE  F-1",null,"compilare la sezione F-1 ","6 MESI"]

{"sheet":"5-VdR_PdM","index":4,"n_rows":21,"n_cols":20,"rows_kept":21,"cut":false,"hidden":false,"merged":[[0,11,4,14],[20,10,20,11],[6,1,6,2],[0,1,4,1],[10,1,12,1],[8,3,8,5],[8,6,8,8],[8,9,8,11],[8,12,8,14],[6,3,6,4],[0,2,0,10],[1,2,1,10],[2,2,4,10]]}
[null,null,{"$f":"'1_Cartiglio '!C1:Q2","v":"Valutazione del rischio (VdR)"},null,null,null,null,null,null,null,null,{"$f":"'1_Cartiglio '!$A$8&\"                                                                                      Pagina \"&R2&\"  di \"&'1_Cartiglio '!$B$10&\"                                                                                             \"&'1_Cartiglio '!$A$11&'1_Cartiglio '!$B$11&\"                                                                                              \" &'1_Cartiglio '!$A$12&'1_Cartiglio '!$B$12&\"\"","v":"Appr. LNRBM-ITA                                                                                      Pagina 5  di 8                                                                                             Revisione n.1                                                                                              Data:15/05/2023"}]
[null,null,{"$f":"'1_Cartiglio '!C3:Q3","v":"LINEE GUIDA NAZIONALI"},null,null,null,null,null,null,null,null,null,null,null,null,null,null,5]
[null,null,"Molluschi Bivalvi Vivi"]
[]
[]
[]
[null,"PROCESSO:                     definizione del PdM",null,"processo decisionale"]
[]
[null,"PUNTI CRITICI DEL PROCESSO",null,"ATTIVITA CONSIDERATE",null,null,"ESECUZIONE ATTIVITA'",null,null,"ATTIVITA' IMPLEMENTATE A SUPPORTO ",null,null,"OSA ",null,null,"contributo","RISCHIO VALUTATO DA PdM"]
["A","PIANO DI MONITORAGGIO (PdM)",null,null,"(COLONNA DA COMPILARE SELEZIONANDO DAL MENU A TENDINA)",null,null,"(COLONNA DA COMPILARE SELEZIONANDO DAL MENU A TENDINA)",null,null,"(COLONNA DA COMPILARE SELEZIONANDO DAL MENU A TENDINA)",null,null,"(COLONNA DA COMPILARE SELEZIONANDO DAL MENU A TENDINA)",null,"%"]
[null,"PRODUZIONE REGOLARE E CONTINUATIVA","P1","Campionamento segue una programmazione annuale",null,{"$f":"IF(E11=\"SI\",1,IF(E11=\"NO\",10,\"\"))","v":""},"Campionamento viene eseguito con cadenza",null,{"$f":"IF(H11=\"\",\"\",VLOOKUP(H11,Foglio1!$D$3:$G$7,2,0))","v":""},"Campionamento Fitoplancton",null,{"$f":"IF(K11=\"\",\"\",VLOOKUP('5-VdR_PdM'!K11,'5-VdR_PdM'!S11:T12,2,0))","v":""},"Importanza commerciale dell'area ",null,{"$f":"IF(N11=\"\",\"\",(IF(N11=\"area a media o alta produttività\",2,1.8)))","v":""},10,{"$f":"IFERROR(F11*I11*L11*O11*P11,\"NON CLASSIFICATO\")","v":"NON CLASSIFICATO"},null,"PREVISTO",1]
[null,null,null,null,null,null,null,null,null,null,null,null,null,null,null,null,null,null,"NON PREVISTO",100]
[null,null,"P2","nella fase di programmazione del monitoraggio sono state prese in considerazione le seguenti informazioni relative alla area: ciclo produttivo e durata , produzione, eventuale fermo pesca; periodo di raccolta",null,{"$f":"IF(E13=\"SI\",1,IF(E13=\"NO\",7,\"\"))","v":""},"nel caso di condizioni meteo avverse o in caso di impossibilità ad eseguire il campionamento ",null,{"$f":"IF(H13=\"\",\"\",IF(H13=\"campionamento annullato\",20,1))","v":""},null,null,null,"I campioni in autocontrollo (OSA) sono numericamente significativi ai fini del controllo dell'Area di produzione?",null,{"$f":"IF(N13=\"\",\"\",IF(N13=\"SI\",1,2))","v":""},3,{"$f":"IFERROR(F13*I13*O13*P13,\"NON CLASSIFICATO\")","v":"NON CLASSIFICATO"}]
[null,"SPECIE CAMPIONATA","P3"," Capacità di filtrazione (alto  o basso potere filtrante)",null,{"$f":"IF(E14=\"\",\"\",VLOOKUP(E14,Foglio1!D27:E29,2,0))","v":""},"la specie campionata coincide con la specie indicatore",null,{"$f":"IF(H14=\"\",\"\",IF(H14=\"SI\",1,2))","v":""},"nel caso di presenza di BM nella specie indicatore, come vengono gestite le altre specie eventualmente presenti",null,{"$f":"IF(K14=\"\",\"\",VLOOKUP(K14,Foglio1!$N$8:$O$10,2,0))","v":""},null,null,null,null,{"$f":"IFERROR(F14*I14*L14,\"NON CLASSIFICATO\")","v":"NON CLASSIFICATO"}]
[null,"VALUTAZIONE RISCHIO DA PIANO DI MONITORAGGIO",null,{"$f":"IFERROR(Q16,\"\")","v":""},null,null,null,null,null,null,null,null,null,null,null,null,{"$f":"IFERROR(Q11+Q13+Q14,\"\")","v":""}]
[null,"CLASSIFICAZIONE DI RISCHIO",null,{"$f":"IF(D15=\"\",\"\",(IF(D15<200,\"BASSO\",IF(Q16<450,\"MEDIO\",\"ELEVATO\"))))","v":""},null,null,null,null,null,null,null,null,null,null,null,null,{"$f":"IF(AND(H11=\"settimanale\",H13=\"campionamento annullato\"),MAX(210,Q15),Q15)","v":""}]
[]
[]
[]
[]
[null,null,null,null,null,null,null,null,null,null,"VERIFICA RISULTATI"]

{"sheet":"6-VdR_processo","index":5,"n_rows":68,"n_cols":13,"rows_kept":68,"cut":false,"hidden":false,"merged":[[54,1,54,2],[49,1,49,2],[62,8,62,10],[31,0,31,10],[0,1,4,1],[0,9,4,10],[0,2,0,8],[1,2,2,8],[3,2,4,8],[28,1,28,2],[19,1,19,2],[22,1,22,2],[23,1,23,2],[47,1,47,2],[38,1,38,2],[37,1,37,2],[43,1,43,2],[45,1,45,2],[46,1,46,2],[27,1,27,2],[44,1,44,2],[39,1,39,10],[36,1,36,2],[34,1,34,2],[35,1,35,2],[33,1,33,2],[26,1,26,2],[20,1,20,2],[11,1,11,2],[15,1,15,2],[16,1,16,2],[21,1,21,2],[14,1,14,2],[67,5,67,6],[8,7,8,10],[8,3,8,5],[32,1,32,10],[11,10,11,11],[8,1,8,2],[9,1,9,2],[10,1,10,2],[13,1,13,2],[18,1,18,2],[17,1,17,2],[30,1,30,2],[24,1,24,2],[25,1,25,2],[63,1,63,10],[12,1,12,2]]}
[null,null,{"$f":"'1_Cartiglio '!C1:Q2","v":"Valutazione del rischio (VdR)"},null,null,null,null,null,null,{"$f":"'1_Cartiglio '!$A$8&\"                                    Pagina \"&M2&\"  di \"&'1_Cartiglio '!$B$10&\"                                        \"&'1_Cartiglio '!$A$11&'1_Cartiglio '!$B$11&\"                                  \" &'1_Cartiglio '!$A$12&'1_Cartiglio '!$B$12&\"\"","v":"Appr. LNRBM-ITA                                    Pagina 6  di 8                                        Revisione n.1                                  Data:15/05/2023"}]
[null,null,{"$f":"'1_Cartiglio '!C3:Q3","v":"LINEE GUIDA NAZIONALI"},null,null,null,null,null,null,null,null,null,6]
[]
[null,null,{"$f":"'1_Cartiglio '!C4:Q5","v":"Molluschi Bivalvi Vivi"}]
[]
[]
[null,"PROCESSO: CAMPIONAMENTO E ANALISI"]
[]
[null,"PUNTI CRITICI DEL PROCESSO",null,"ATTIVITA CONSIDERATE",null,null,null,"ESECUZIONE ATTIVITA'"]
[null,null,null,"descrizione attivita","applicazione","valutazione ","valutazione  II livello","dettaglio della attività","applicaszione","valutazione","output atteso"]
[null,null,null,null,"(COLONNA DA COMPILARE SELEZIONANDO DAL MENU A TENDINA)",null,null,null,"(COLONNA DA COMPILARE SELEZIONANDO DAL MENU A TENDINA)"]
[null,"VALUTAZIONE CAMPIONAMENTO",null,null,null,null,null,null,null,null,"torna al CARTIGLIO"]
["V1","LOCALIZZAZIONE DEI PUNTI DI CAMPIONAMENTO"]
["V1-A","INFORMAZIONI NECESSARIE"]
[null,null,null,"i punti di campionamento sono ben identificati e georeferenziati",null,{"$f":"IF(E15=\"\",\"\",IF(E15=\"NO\",50,5))","v":""},{"$f":"F15","v":""}]
[null,null,null,"Possibilità di campionamento di acqua e molluschi nella stessa area, ",null,{"$f":"IF(E16=\"\",\"\",VLOOKUP(E16,Foglio1!$D$10:$E$12,2,0))","v":""},{"$f":"F16","v":""}]
[null,null,null,"esistenza di Stazioni “sentinella” monitorate con frequenza ridotta",null,{"$f":"IF(E17=\"\",\"\",VLOOKUP(E17,Foglio1!$D$10:$E$12,2,0))","v":""},{"$f":"F17","v":""}]
[null,"V1-A VALUTAZIONE RISCHIO",null,{"$f":"IFERROR(ROUND((IF(E15=\"NO\",MAXA(51,F18),F18)*G29),0),\"\")","v":""},null,{"$f":"IFERROR(G15*AVERAGE(G16:G17),\"NON APPLICABILE\")","v":"NON APPLICABILE"}]
["V1-B","INFORMAZIONI AGGIUNTIVE ACCESSORIE"]
[null," si vuole compilare le seguenti voci"]
[null,"vedi art. 56 REG UE 2019/627 Prescrizioni in materia di indagine sanitaria",null,"sono noti dati relativi alla idrografia, fenomeni di upwellings, fronti, correnti, effetti di marea;",null,{"$f":"IF(E21=\"\",\"\",VLOOKUP(E21,Foglio1!$D$10:$G$13,2,0))","v":""},{"$f":"IFERROR(F21/J21,\"\")","v":""},"esistono modelli idrodinamici che interpolano i dati raccolti ",null,{"$f":"IF(I21=\"\",\"\",IF(E21=\"SI\",VLOOKUP(I21,Foglio1!D10:F12,3,0),1))","v":""}]
[null,"NOTA: tali informazioni dovrebbero essere già a disposizione della AC in quanto per la classificazione delle aree servono dati per fare la DESK STUDY preliminare",null,"sono noti dati chimo-fisici dell'area (T°; pH, salinità ossigeno disciolto)",null,{"$f":"IF(E22=\"\",\"\",VLOOKUP(E22,Foglio1!$D$10:$G$13,2,0))","v":""},{"$f":"IFERROR(F22/J22,\"\")","v":""},"I dati vengono utilizzati nel modello",null,{"$f":"IF(I22=\"\",\"\",IF(AND(E22=\"SI\",I22=\"SI\"),2,1))","v":""}]
[null,"vedi anche art 56 del Reg UE 2019/627",null,"esistono fenomeni di Vertical mixing nella colonna d’acqua",null,{"$f":"IF(E23=\"\",\"\",VLOOKUP(E23,Foglio1!$D$10:$G$13,2,0))","v":""},{"$f":"IFERROR(F23/J23,\"\")","v":""},"è nota la batimetria",null,{"$f":"IF(I23=\"\",\"\",IF(AND(E23=\"si\",I23=\"SI\"),2,1))","v":""}]
[null,null,null,"i punti di campionamento sono facilmente accessibili anche in situazioni metereologiche avverse,",null,{"$f":"IF(E24=\"\",\"\",VLOOKUP(E24,Foglio1!$D$10:$G$13,2,0))","v":""},{"$f":"F24","v":""}]
[null,null,null,"esistono dei modelli previsionali che consentono di valutare oggettivamente la circolazione degli inquinanti e delle masse algali, elaborati sulla base di dati pregressi",null,{"$f":"IF(E25=\"\",\"\",VLOOKUP(E25,Foglio1!$D$10:$G$13,2,0))","v":""},{"$f":"IF(E25=\"SI\",IFERROR(F25/J25,\"\"),F25)","v":""},"se \"SI\" i dati raccolti si riferiscono",null,{"$f":"IF(I25=\"\",\"\",IF(E25=\"SI\",VLOOKUP(I25,Foglio1!D15:E17,2,0),1))","v":""}]
[null,null,null,"sono noti fenomeni di Ingressioni di fioriture",null,{"$f":"IF(E26=\"\",\"\",VLOOKUP(E26,Foglio1!$D$10:$G$13,2,0))","v":""},{"$f":"IF(E26=\"SI\",IFERROR(F26/J26,\"\"),F26)","v":""},"se \"SI\" sono prevedibili",null,{"$f":"IF(I26=\"\",\"\",VLOOKUP(I26,Foglio1!D10:F12,3,0))","v":""}]
[null,null,null,"sono presenti dati che  evidenziano variazioni dovute ai cambiamenti climatici ",null,{"$f":"IF(E27=\"\",\"\",VLOOKUP(E27,Foglio1!$D$10:$G$13,2,0))","v":""},{"$f":"IF(E27=\"SI\",IFERROR(F27/J27,\"\"),F27)","v":""},"se \"SI\" possono essere previsti mediante un modello previsionale",null,{"$f":"IF(I27=\"\",\"\",IF(E27=\"SI\",VLOOKUP(I27,Foglio1!D10:F12,3,0),1))","v":""}]
[null,"vedi art. 56 REG UE 2019/627 Prescrizioni in materia di indagine sanitaria",null,"sono presenti informazioni relative al collocamento dell' Area indagata (se posizionata in prossimità di un estuario o zone \"a rischio\", (valutare anche l'esposizione a fonti potenziali di rischio quali maree, stagionalità, presenza di impianti di depurazione, località turistiche che possono presentare un aumento di popolazione in particolari periodi dell'anno; ",null,{"$f":"IF(E28=\"\",\"\",VLOOKUP(E28,Foglio1!$D$10:$G$13,2,0))","v":""},{"$f":"IF(E28=\"SI\",IFERROR(F28/J28,\"\"),F28)","v":""},"se \"SI\" è stata considerata nella programmazione del monitoraggio",null,{"$f":"IF(I28=\"\",\"\",IF(E28=\"SI\",VLOOKUP(I28,Foglio1!D10:F12,3,0),1))","v":""}]
["V1-B","Valutazione rischio informazioni di dettaglio-RISUTATO",null,null,null,null,{"$f":"IF(D20=\"NO\",5,IFERROR(AVERAGE(G21:G28),5))","v":5}]
[]
["V1","VALUTAZIONE RISCHIO DA LOCALIZZAZIONE PUNTI DI CAMPIONAMENTO -RISULTATO COMPLESSIVO",null,null,{"$f":"F31","v":"NON APPLICABILE"},{"$f":"IFERROR(F18*G29,\"NON APPLICABILE\")","v":"NON APPLICABILE"}]
[]
[]
["V2","•DEFINIZIONE DEL NUMERO RAPPRESENTATIVO DEI PUNTI DI CAMPIONAMENTO"]
[null,null,null,"IL PIANO DI CAMPIONAMENTO GARANTISCE LA Rappresentatività spaziale",null,{"$f":"IF(E35=\"\",\"\",IF(E35=\"SI\",1, 100))","v":""}]
[null,null,null,"Campionamento statisticamente rappresentativo in funzione dei dati storici",null,{"$f":"IF(E36=\"\",\"\",VLOOKUP(E36,Foglio1!$D$10:$E$12,2,0))","v":""}]
[null,"solo in in caso di riduzione dei punti di campionamento/raggruppamento per area OMOGENEA",null,"Scelta dei punti di campionamento più rappresentativi in funzione dei dati storici (scelta dell’area più esposta a contaminazione)",null,{"$f":"IF(E37=\"\",\"\",VLOOKUP(E37,Foglio1!$D$10:$E$12,2,0))","v":""},{"$f":"IFERROR(IF(E37=\"SI\",F37/J37,F37),\"\")","v":""},"se \"SI\" Scelta dei punti rappresentativi dell’area adottando un approccio preventivo e cautelativo del “peggiore delle ipotesi”",null,{"$f":"IF(I37=\"\",\"\",IF(E37=\"si\",VLOOKUP(I37,Foglio1!D10:F12,3,0),1))","v":""}]
[null,null,null,null,null,{"$f":"G38","v":"NON APPLICABILE"},{"$f":"IFERROR(F35*F36*G37,\"NON APPLICABILE\")","v":"NON APPLICABILE"},null,null,{"$f":"J37","v":""}]
["V2","VALUTAZIONE RISCHIO DEL NUMERO RAPPRESENTATIVO DEI PUNTI DI CAMPIONAMENTO-RISULTATO",null,null,{"$f":"F39","v":"NON APPLICABILE"},{"$f":"IF(F38=\"\",\"NON APPLICABILE\",IF(E35=\"SI\",G38, F38))","v":"NON APPLICABILE"}]
[]
["V3","CAMPIONAMENTO E ANALISI FITOPLANCTON",null,"modalità di campionamento",null,{"$f":"IF(E41=\"\",\"\",VLOOKUP(E41,Foglio1!D20:E21,2,0))","v":""}]
[null,null,null,"Formazione del personale addetto al campionamento",null,{"$f":"IF(E42=\"\",\"\",VLOOKUP(E42,Foglio1!D23:E25,2,0))","v":""}]
[null,"• VALUTAZIONE DELLE TOSSICITA’ DELLE ALGHE",null,"Esistenza di una LISTA di alghe in ordine di tossicità e raccolte per tossina-prodotta",null,{"$f":"IF(E43=\"\",\"\",VLOOKUP(E43,Foglio1!$D$10:$G$12,2,0))","v":""}]
["V3-A","VALUTAZIONE RISCHIO: CAMPIONAMENTO E ANALISI FITOPLANCTON-RISULTATO",null,null,{"$f":"IFERROR(F41*F42*F43,\"NON APPLICABILE\")","v":"NON APPLICABILE"}]
["V3-A1","informazioni di dettaglio FIOPLANCTON E MB"]
[null,null,null,"Esistenza di una procedura di campionamento accurata che consente un campionamento rappresentativo",null,{"$f":"IF(E46=\"\",\"\",VLOOKUP(E46,Foglio1!$D$10:$G$12,4,0))","v":""}]
[null,null,null,"Esistenza di piani di campionamento dettagliati riportanti almeno le seguenti informazioni                                                                                   • Coordinate georeferenziate per il campionamento\n• Indicazioni sulle modalità di prelievo del campione",null,{"$f":"IF(E47=\"\",\"\",VLOOKUP(E47,Foglio1!$D$10:$G$12,4,0))","v":""}]
[null,"VALUTAZIONE RISCHIO: CAMPIONAMENTO E ANALISI FITOPLANCTON-RISULTATO",null,null,{"$f":"IF(AND(E46<>\"\",E47<>\"\"),MAX(F46:F47),\"NON APPLICABILE\")","v":"NON APPLICABILE"}]
[]
["V3-B","• CAMPIONAMENTO MOLLUSCHI_SPECIE INDICATORE",null,"• Identificazione Specie indicatore",null,{"$f":"IF(E50=\"\",\"\",VLOOKUP(E50,Foglio1!$D$10:$G$12,2,0))","v":""}]
[null,null,null,"Formazione del personale addetto al campionamento",null,{"$f":"IF(E51=\"\",\"\",VLOOKUP(E51,Foglio1!D23:E25,2,0))","v":""}]
[null,null,null,"campionamento fitoplancton e molluschi",null,{"$f":"IF(E52=\"\",\"\",IF(E52=\"contestuale\", 0.5,1))","v":""}]
[null,null,null,"• Verbale di campionamento indicante ",null,{"$f":"IF(E53=\"\",\"\",VLOOKUP(E53,Foglio1!$D$10:$G$12,4,0))","v":""}]
[null,null,null,"o T acqua, salinità\no Condizioni meteo \no Condizioni idro                                                                                       o Dettagli sulla tipologia di specie da campionamento e dimensioni e quantità degli esemplari\n"]
[null,"VALUTAZIONE RISCHIO: CAMPIONAMENTO MOLLUSCHI_SPECIE INDICATORE",null,null,{"$f":"IFERROR(F50*F51*F52*F53,\"NON APPLICABILE\")","v":"NON APPLICABILE"}]
["V3","VALUTAZIONE RISCHIO ASSOCIATO AL CAMPIONAMENTO-RISULTATO"]
[]
["V4","VALUTAZIONE RISCHIO LABORATORIO","*","Analisi biotossine e fito nello stesso lab",null,{"$f":"IF(E58=\"\",\"\",IF(E58=\"SI\",1,10))","v":""},{"$f":"IFERROR(F58/J58,\"\")","v":""},"ESISTE UN CONFRONTO CONTINUO TRA I DATI DEL FITO E QUELLI DELLE BIOTOSSINE",null,{"$f":"IF(I58=\"\",\"\",IF(I58=\"SI\",10,1))","v":""}]
[null,"METODI DI ANALISI","**","Conformi ai requisiti del Reg UE 2019/627 ALLEGATO V per le biotossine",null,{"$f":"IF(E59=\"\",\"\",VLOOKUP(E59,Foglio1!$D$10:$G$12,4,0))","v":""},{"$f":"F59","v":""}]
[null,null,null,"Tempi di refertazione",null,{"$f":"IF(E60=\"\",\"\",VLOOKUP(E60,[9]Foglio1!D31:E34,2,0))","v":""},{"$f":"IFERROR(F60/J60,\"\")","v":""},"il tempo di refertazione è congruo con la frequenza di campionamento",null,{"$f":"IF(I60=\"\",\"\",IF(I60=\"SI\",4,0.05))","v":""}]
[null,null,"**"," ACCREDITAMENTO BM regolamentate",null,{"$f":"IF(E61=\"\",\"\",VLOOKUP(E61,[9]Foglio1!$D$10:$G$12,4,0))","v":""},{"$f":"F61","v":""}]
[null,null,null," ACCREDITAMENTO FITO",null,{"$f":"IF(E62=\"\",\"\",VLOOKUP(E62,Foglio1!D10:J13,7,0))","v":""},{"$f":"IFERROR(IF(E62=\"SI\",F62,F62/J62),\"\")","v":""},"in caso di prova NON ACCREDITATA il metodo si mantiene in CQ mediante",null,{"$f":"IF(I62=\"\",\"\",VLOOKUP(I62,Foglio1!D36:E38,2,0))","v":""}]
["V4","VALUTAZIONE RISCHIO: LABORATORI E METODI",null,null,{"$f":"IF(F63=\"\",\"\",IFERROR(F63+G63,\"non applicabile\"))","v":""},{"$f":"IF(G58=\"\",\"\",IFERROR(MAX(G58,G60,G62),\"NON APPLICABILE\"))","v":""},{"$f":"IF(G59=\"\",\"\",IFERROR(MAXA(G59,G61),\"non applicabile\"))","v":""},null,{"$f":"IF(I62=\"altro\",\"specificare\",\"\")","v":""}]
[]
[]
[]
[]
[null,null,null,null,null,"VERIFICA RISULTATI"]

{"sheet":"7-OPPORTUNITA","index":6,"n_rows":42,"n_cols":14,"rows_kept":42,"cut":false,"hidden":false,"merged":[[0,3,1,9],[2,3,2,9],[3,3,4,9],[0,10,4,11],[0,1,4,2],[8,1,8,11],[17,1,17,11],[16,1,16,11],[9,2,9,11],[18,2,18,11],[41,2,41,3],[27,2,27,3],[23,1,23,3],[15,1,15,3],[24,1,24,11]]}
[null,null,null,"Valutazione del rischio (VdR)",null,null,null,null,null,null,{"$f":"'1_Cartiglio '!$A$8&\"                                    Pagina \"&N2&\"  di \"&'1_Cartiglio '!$B$10&\"                                        \"&'1_Cartiglio '!$A$11&'1_Cartiglio '!$B$11&\"                                  \" &'1_Cartiglio '!$A$12&'1_Cartiglio '!$B$12&\"\"","v":"Appr. LNRBM-ITA                                    Pagina 7  di 8                                        Revisione n.1                                  Data:15/05/2023"}]
[null,null,null,null,null,null,null,null,null,null,null,null,null,7]
[null,null,null,"LINEE GUIDA NAZIONALI"]
[null,null,null,"Molluschi Bivalvi Vivi"]
[]
[]
[]
[null,"ATTIVITA' IMPLEMENTATA","AZIONE","APPLICAZIONE","VALUTAZIONE","VALUTAZIONE COMPLESSIVA","ATTIVITA' SUPPORTO 1","APPLICAZIONE","VALUTAZIONE","ATTIVITA' SUPPORTO 2","APPLICAZIONE","VALUTAZIONE"]
["O1","O1-VALUTAZIONE DATI STORICI E TREND FITOPLANCTON e  BIOTOSSINE MARINE"]
[null,"Obiettivo","inserire nel processo di VdR una fase di indagine preliminare basata sulla valutazione dei dati disponibili e sulle rilevanze ottenute  al fine di ridurre il rischio derivante dalla pianificazione del monitoraggio e della frequenza di campionamento"]
[null,"UTILIZZO DATI STORICI PER LA DEFINZIONE DELLE FREQUENZE","sono disponibili Informazioni storiche di base tra cui i dati delle tossine e delle specie algali tossiche rilevate",null,{"$f":"IF(D11=\"\",\"\",IF(D11=\"SI\",1,0))","v":""},{"$f":"E11","v":""}]
[null,"da compilare solo nel caso in cui O1_SI","esistono dei dati storici relativi ad almeno tre anni consecutivi  in cui si evidenzia che per determinati periodi non è stato registrato alcun evento di fioritura tossico o presenza di biotossine marine; ",null,{"$f":"IF(D12=\"\",\"\",VLOOKUP(D12,Foglio1!$D$10:$G$12,4,0))","v":""},{"$f":"IFERROR(E12/(I12*I13*I14),\"\")","v":""},"• I dati storici sono tali da definire un trend e individuare dei periodi di “rischio”",null,{"$f":"IF(H12=\"\",\"\",IF(H12=\"\",\"\",VLOOKUP(H12,Foglio1!D10:F12,3,0)))","v":""}]
[null,null,null,null,null,null,"i dati storici consentono di fare delle previsioni  (es: tempo impiegato dal MB a accumulare la tossina etc)",null,{"$f":"IF(H13=\"\",\"\",IF(H13=\"\",\"\",VLOOKUP(H13,Foglio1!D10:F12,3,0)))","v":""}]
[null,null,null,null,null,null,"i dati storici raccolti sono stati utilizzati per la definizione della frequenza di campionamento ",null,{"$f":"IF(H14=\"\",\"\",VLOOKUP(H14,Foglio1!D10:F13,3,0))","v":""}]
[null,null,"in caso di sospensione del campionamento  per un certo periodo in relazione a valutazioni condotte su dati storici viene garantito il campionamento di almeno 1 pto per la raccolta dati - della specie “indicatrici” sentinella ",null,{"$f":"IF(D15=\"\",\"\",VLOOKUP(D15,Foglio1!$D$10:$H$12,5,0))","v":""},{"$f":"IFERROR(E15/I15,\"\")","v":""},"il campionamento del punto sentinella viene effettuato con una cadenza",null,{"$f":"IF(D15=\"NO\",1,IF(H15=\"\",\"\",IF(D15=\"si\",VLOOKUP(H15,Foglio1!D58:E61,2,0),1)))","v":""}]
["O1","VALUTAZIONE DATI STORICI",null,null,{"$f":"F16","v":"errore di Compilazione"},{"$f":"IF(AND(D12<>\"\",D15<>\"\"),(IFERROR(AVERAGE(F12:F15),\"\")),\"errore di Compilazione\")","v":"errore di Compilazione"}]
[]
["O2","SISTEMI DI EARLY WARNING"]
[null,"obiettivo","implementare un sistema di early warning che consente di intercettare l'evento tossico e di gestire la criticita al fine di adottare un piano di monitoraggio flessibile in termini di frequenza di campionamento "]
[null,"implementazione DI UN SISTEMA DI EARLY WARNING  SUPPORTO DELLE ATTIVITA DI MONITORAGGIO","ESISTENZA DI SISTEMI DI EARLY WARNING (da dettagliare)",null,{"$f":"IF(D20=\"\",\"\",VLOOKUP(D20,Foglio1!$D$10:$G$12,4,0))","v":""},{"$f":"IFERROR(IF(D20=\"NO\",1,E20/I20),\"\")","v":""},"i sistemi di early warning si basano su dati di trend",null,{"$f":"IF(H20=\"\",\"\",IF(D20=\"SI\",VLOOKUP(H20,Foglio1!D41:E44,2,0),1))","v":""}]
[null,null,null,null,null,{"$f":"IFERROR(IF(D20=\"NO\",1,E20/I21),\"\")","v":""},"il sistema di early warning si applica ",null,{"$f":"IF(H21=\"\",\"\",VLOOKUP(H21,Foglio1!D47:E50,2,0))","v":""}]
[null,null,null,null,null,{"$f":"IFERROR(IF(D20=\"NO\",1,E20/I22),\"\")","v":""},"il sistema di early warning adottato consente di intercettare il fenomeno al suo manifestarsi",null,{"$f":"IF(H22=\"\",\"\",VLOOKUP(H22,Foglio1!J47:K50,2,0))","v":""}]
[null,null,null,null,null,{"$f":"IFERROR(IF(D20=\"NO\",1,E20/I23),\"\")","v":""},"il sistema di early warning è stato attivato da  un periodo",null,{"$f":"IF(H23=\"\",\"\",VLOOKUP(H23,Foglio1!D15:F17,3,0))","v":""}]
[null,null,null,null,{"$f":"IF(D20<>\"\",(IF(D20=\"SI\",F24,1.5)),\"\")","v":""},{"$f":"IF(D20<>\"\",IFERROR(AVERAGE(F20:F23),\"ERRORE DI COMPILAZIONE\"),\"\")","v":""},{"$f":"IFERROR(AVERAGE(F20:F21)+AVERAGE(F22:F23),\"\")","v":""}]
[]
[null,"valutazione OPPORTUNITA COMPLESSIVA (O1-O2)",null,null,{"$f":"IF(AND(F16>0,E24>0),IFERROR(IF(AVERAGE(E16,E24)<=1,AVERAGE(E16,E24),1),\"\"),\"NON ATTUabile\")","v":""}]
[]
[null,null,"VERIFICA RISULTATI"]
[]
[]
[null,"SI VUOLE COMPILARE LA PARTE F-1"]
[null,"NOTA","compilare tutte le celle altrimenti compare il messaggio di errore"]
["F-1","F_ATTIVITA COMPLEMENTARI","VERIFICA EFFICACIA PIANO DI EARLY WARNING"]
[null,"efficacia del controllo di early warning","in caso di un sospetto o non conformità biotossicologica; chimica o microbiologica è stato previsto nel piano di monitoraggio un CONTROLLO RAFFORZATO",null,{"$f":"IF(D34=\"\",\"\",VLOOKUP(D34,Foglio1!$D$10:$G$12,4,0))","v":""},{"$f":"IF(D34=\"\",\"\",IF(D34=\"SI\",E34/I34,1))","v":""},"il Controllo rafforzato viene attivato in seguito ad un superamento dei limiti di early warning",null,{"$f":"IF(H34=\"\",\"\",VLOOKUP(H34,Foglio1!D10:F12,3,0))","v":""}]
[null,"VALUTAZIONE FREQUENZA EVENTI DI INTOSSICAZIONE","sono stati registrati Eventi di tossicità ed intossicazione umana",null,{"$f":"IF(D35=\"\",\"\",VLOOKUP(D35,Foglio1!$D$10:$I$16,6,0))","v":""},{"$f":"IF(D35=\"\",\"\",IF(D35=\"SI\",E35/(I35*L35)*F36,0.5))","v":""},"gli eventi sono stati registrati",null,{"$f":"IF(H35=\"\",\"\",VLOOKUP(H35,Foglio1!D64:E67,2,0))","v":""},"la intossicazione è dovuta a",null,{"$f":"IF(K35=\"\",\"\",VLOOKUP(K35,Foglio1!D52:E56,2,0))","v":""}]
[null,"nel caso di registrazione di eventi di intossicazione umana","sono intervenute azioni correttive nel caso di evidenza di intossicazioni",null,{"$f":"IF(D36=\"\",\"\",VLOOKUP(D36,Foglio1!$D$10:$G$12,4,0))","v":""},{"$f":"IF(D36=\"\",\"\",IF(D36=\"NO\",1,E36/I36))","v":""},"a seguito della applicazione della correzione sono stati registrati nuovi episodi",null,{"$f":"IF(H36=\"\",\"\",IF(H36=\"SI\",0.5,1))","v":""}]
[null,"VALUTAZIONE FREQUENZA EVENTI DI INTOSSICAZIONE",null,null,{"$f":"IF(D31=\"\",\"\",IF(D31=\"NO\",1,F37))","v":""},{"$f":"IF(AND(F35=\"\",F36=\"\"),\"\",MAX(F34:F36))","v":""}]
[]
[]
[]
[]
[null,null,"VERIFICA RISULTATI",null,null,null,{"$f":"IF(AND(D34=\"SI\",E37>=1),\"ATTENZIONE_EARLY WARNING NON EFFICIENTE\",\"\")","v":""}]

{"sheet":"8-VERIFICA PARTE TERZA_BOZZA ","index":7,"n_rows":46,"n_cols":14,"rows_kept":46,"cut":false,"hidden":false,"merged":[[19,2,19,6],[12,2,12,6],[13,2,13,6],[14,2,14,6],[15,2,15,6],[16,2,16,6],[0,1,4,2],[0,3,1,11],[2,3,2,11],[3,3,4,11],[6,1,10,2],[6,3,7,9],[6,10,10,11],[8,3,8,9],[9,3,10,9]]}
[]
[]
[]
[]
[]
[]
[null,null,null,"Valutazione del rischio (VdR)",null,null,null,null,null,null,{"$f":"'1_Cartiglio '!$A$8&\"                                    Pagina \"&N8&\"  di \"&'1_Cartiglio '!$B$10&\"                                        \"&'1_Cartiglio '!$A$11&'1_Cartiglio '!$B$11&\"                                  \" &'1_Cartiglio '!$A$12&'1_Cartiglio '!$B$12&\"\"","v":"Appr. LNRBM-ITA                                    Pagina 8  di 8                                        Revisione n.1                                  Data:15/05/2023"}]
[null,null,null,null,null,null,null,null,null,null,null,null,null,8]
[null,null,null,"LINEE GUIDA NAZIONALI"]
[null,null,null,"Molluschi Bivalvi Vivi"]
[]
[]
[null,"AUTORITA'/ENTE"]
[null,"PERSONALE incaricato"]
[null,"RUOLO"]
[null,"DATA"]
["A","NOTE"]
[]
[]
[null,"PROCEDURA DI VALUTAZIONE DOPO ","(indicare dopo quanto tempo dalla data del PdM è stata fatta la verifica)"]
[]
[null,"valutazioni ","attività","output","modi potenziali di inadeguatezza","GRAVITA","classificazione","PROBABILITA","classificazione","RIVELABILITA'","classificazione","indice"]
[null,"efficacia del piano di monitoraggio","controllo BM nei MBV -frequenza di campionamento","il PdM garantisce la tutela del consumatore","non viene intercettato l'evento tossico",8,{"$f":"VLOOKUP(F23,RIASSUNTO!$C$6:$G$16,3,0)","v":"MOLTO ALTO"},6,{"$f":"VLOOKUP(H23,RIASSUNTO!$C$6:$G$16,4,0)","v":"OCCASIONALE"},7,{"$f":"VLOOKUP(J23,RIASSUNTO!$C$6:$G$16,5,0)","v":"REMOTA"},{"$f":"F23*H23*J23","v":336}]
[null,"efficacia del PROCESSO","controllo MB-attività a supporto del PdM","le attività garantiscono il rispetto dei requisiti cogenti","non vengono rispettati i requisiti cogenti",null,{"$f":"VLOOKUP(F24,RIASSUNTO!$C$6:$G$16,3,0)","v":{"$error":"#N/A"}},null,{"$f":"VLOOKUP(H24,RIASSUNTO!$C$6:$G$16,4,0)","v":{"$error":"#N/A"}},null,{"$f":"VLOOKUP(J24,RIASSUNTO!$C$6:$G$16,5,0)","v":{"$error":"#N/A"}},{"$f":"F24*H24*J24","v":0}]
[]
[]
[null,"VALUTAZIONE DI RISCHIO"]
[null,null,"ESITO VALUTAZIONE","RISCHIO"]
[]
[null,"efficacia del piano di monitoraggio",{"$f":"L23","v":336},{"$f":"IF(C30<=150,\"BASSO\",(IF(AND(C30>150,C30<=300),\"MEDIO\",\"ALTO\")))","v":"ALTO"}]
[null,"efficacia del PROCESSO",{"$f":"L24","v":0},{"$f":"IF(C31<=150,\"BASSO\",(IF(AND(C31>150,C31<=300),\"MEDIO\",\"ALTO\")))","v":"BASSO"}]
[]
[]
[]
[null,null,"LEGENDA:"]
[null,null,null,"GRAVITA","PROBABILITA","RIVELABILITA'"]
[null,null,10,"ESTREMO","FREQUENTE","QUASI IMPOSSIBILE"]
[null,null,9,"ESTREMO","FREQUENTE","QUASI IMPOSSIBILE"]
[null,null,8,"MOLTO ALTO","PROBABILE","REMOTA"]
[null,null,7,"MOLTO ALTO","PROBABILE","REMOTA"]
[null,null,6,"ALTO","OCCASIONALE","BASSA"]
[null,null,5,"ALTO","OCCASIONALE","BASSA"]
[null,null,4,"MODERATO","REMOTA","ALTA"]
[null,null,3,"MODERATO","REMOTA","ALTA"]
[null,null,2,"LIEVE","IMPROBABILE","QUASI CERTA"]
[null,null,1,"LIEVE","IMPROBABILE","QUASI CERTA"]

{"sheet":"Foglio1","index":8,"n_rows":96,"n_cols":15,"rows_kept":96,"cut":false,"hidden":true,"merged":[]}
[]
[]
[null,null,null,"< settimanale",0.5,200,25,null,null,null,null,null,null,"campionamento rimandato secondo tempistiche consone",1]
[null,null,null,"settimanale",3,100,50,null,null,null,null,null,null,"campionamento annullato",20]
[null,null,null,"<=15 gg",25,50,100]
[null,null,null,"mensile",50,10,125]
[null,null,null,">30 gg",100,5,150]
[null,null,null,null,null,null,null,null,null,null,null,null,null,"si provvede a campionare le altre specie",1]
[null,null,null,1,2,3,4,5,6,7,null,null,null,"si vieta la raccolta",2]
[null,null,null,"SI",1,2,0.5,0.5,100,0.5,null,null,null,"non so",3]
[null,null,null,"NO",5,1,100,1,0.5,50]
[null,null,null,"non so",20,1,100,1,100,100]
[null,null,null,"non rilevante",2,0.5,100,1,100,50]
[]
[null,null,null,"< 3 anni",1,3,0.05]
[null,null,null,"> 3 anni",3,1,1]
[null,null,null,"NON SO",0.1,0.1,0.05]
[]
[]
[null,null,null,"rappresentativo della colonna d'acqua (quant)",1]
[null,null,null,"altro",10]
[]
[null,null,null,"SI",1]
[null,null,null,"NO",15]
[null,null,null,"NON SO",15]
[]
[null,null,null,"alto potere filtrante",5]
[null,null,null,"basso potere filtrante",1]
[null,null,null,"non so",3]
[]
[null,null,null,"< 5 gg",1]
[null,null,null,"5-10",10]
[null,null,null,"> 10 gg",20]
[null,null,null,"non so",30]
[]
[null,null,null,"PT",10]
[null,null,null,"confronti inter-lab",5]
[null,null,null,"altro",3]
[null,null,null,"specificare"]
[]
[null,null,null,"LOCALI",10]
[null,null,null,"NAZIONALI",7]
[null,null,null,"EUROPEI",3]
[null,null,null,"ALTRO",1]
[]
[]
[null,null,null,"valori soglia per il fitoplancton",5,null,null,null,null,"si",10,0.1]
[null,null,null,"valori soglia per biotossine",5,null,null,null,null,"no",0.5,5]
[null,null,null,"entrambi",10,null,null,null,null,"non si dispongono ancora di dati sufficienti",1,1]
[null,null,null,"no",1,null,null,null,null,"non so",0.5,0.1]
[]
[null,null,null,"mancata individuazione della tossicità",0.1,null,null,null,"sono stati segnalati dalla ASL",null,0.01]
[null,null,null,"prodotto non ritirato",0.5,null,null,null,"allert da controllI produzione post-primaria (RASFF)",null,1]
[null,null,null,"mancata comunicazione della tossicità",0.5]
[null,null,null,"altro",0.5]
[null,null,null,"nessun evento",1]
[]
[null,null,null,"settimanale",1]
[null,null,null,"quindicinale",0.8]
[null,null,null,"mensile",0.5]
[null,null,null,"compatibilmente con il periodo di sospensione",1]
[]
[]
[null,null,null,"ultimi 3 anni",0.01]
[null,null,null,"ultimi 5 anni",0.1]
[null,null,null,"non so",1]
[null,null,null,"nessun evento",1]
[]
[]
[]
[null,null,null,"elenco specie"]
[null,null,null,"mitili"]
[null,null,null,"vongole"]
[null,null,null,"cappesante"]
[]
[null,null,null,"elenco allevamenti_tipologie"]
[null,null,null,"a resta"]
[null,null,null,"a lanterna"]
[null,null,null,"long pile"]
[null,null,null,"banchi naturali"]
[]
[null,null,null,"classificazione dell'AREA"]
[null,null,null,"A"]
[null,null,null,"B"]
[null,null,null,"area non classificata"]
[]
[]
[null,null,null,"il sistema di Early Warning è efficace"]
[null,null,null,"non è necessario modificare il PdM ma rivedere la frequenza di campionamento"]
[]
[]
[]
[null,null,null,"SI (per BM e Fito)",0.5]
[null,null,null,"NO (per entrambe le matrici)",100]
[null,null,null,"solo BM regolamentate",50,"con opzione"]
[null,null,null,"solo Fito",100]

{"sheet":"modifiche","index":9,"n_rows":8,"n_cols":7,"rows_kept":8,"cut":false,"hidden":true,"merged":[]}
[]
[]
[]
[null,null,"da inserrie:"]
[]
[null,null,"VdR piano"]
[null,null,"inserire"]
[null,null,"titpologia ssitema di allevamento",null,null,null,"a resta; lanterna; "]

{"sheet":"RIASSUNTO","index":10,"n_rows":27,"n_cols":14,"rows_kept":27,"cut":false,"hidden":true,"merged":[]}
[]
[]
[]
[]
[]
[null,null,null,null,"GRAVITA","PROBABILITA","RIVELABILITA'",null,null,null,null,"GRAVITA","PROBABILITA","RIVELABILITA'"]
[null,null,10,"10-9","ESTREMO","FREQUENTE","QUASI IMPOSSIBILE",null,null,null,10,"ESTREMO","FREQUENTE","QUASI IMPOSSIBILE"]
[null,null,9,null,"ESTREMO","FREQUENTE","QUASI IMPOSSIBILE",null,null,null,9,"ESTREMO","FREQUENTE","QUASI IMPOSSIBILE"]
[null,null,8,"8-7","MOLTO ALTO","PROBABILE","REMOTA",null,null,null,8,"MOLTO ALTO","PROBABILE","REMOTA"]
[null,null,7,null,"MOLTO ALTO","PROBABILE","REMOTA",null,null,null,7,"MOLTO ALTO","PROBABILE","REMOTA"]
[null,null,6,"6-5","ALTO","OCCASIONALE","BASSA",null,null,null,6,"ALTO","OCCASIONALE","BASSA"]
[null,null,5,null,"ALTO","OCCASIONALE","BASSA",null,null,null,5,"ALTO","OCCASIONALE","BASSA"]
[null,null,4,"4-3","MODERATO","REMOTA","ALTA",null,null,null,4,"MODERATO","REMOTA","ALTA"]
[null,null,3,null,"MODERATO","REMOTA","ALTA",null,null,null,3,"MODERATO","REMOTA","ALTA"]
[null,null,2,"2-1","LIEVE","IMPROBABILE","QUASI CERTA",null,null,null,2,"LIEVE","IMPROBABILE","QUASI CERTA"]
[null,null,1,null,"LIEVE","IMPROBABILE","QUASI CERTA",null,null,null,1,"LIEVE","IMPROBABILE","QUASI CERTA"]
[]
[]
[null,null,"0-150","BASSO"]
[null,null,"151-300","MEDIO"]
[null,null,"301-648","MEDIO ALTO"]
[null,null,"> 648","ALTO"]
[]
[]
[null,null,"0,1-3000",0.1]
[null,null,"3001-10000",3000]
[null,null,">10000",10000]